Cogmind - Beta 13 *** ADVENTURER MODE // 2024.03.02 @ 23:27:57 Player: gex Result: Self-destructed Performance ------------- Evolutions (4) 2000 Regions Visited (9) 1800 Robots Destroyed (97) 485 Value Destroyed (2316) 2316 Prototype IDs (7) 140 Alien Tech Used (0) 0 Bonus (615) 615 TOTAL SCORE: 7356 Bonus ------- High Alert Combat Kills 225 Follower Combat Kills 90 Aligned with FarCom 300 Cogmind --------- Core Integrity 496/850 Matter 202/300 Energy 99/100 System Corruption 0% Temperature Cool (2) Movement Hovering (76) Location -6/Factory Parts ------- > --- POWER (2) -------- Backup Power III Backup Power III > --- PROPULSION (4) --- Backup Propulsion III Backup Propulsion III > --- UTILITY (7) ------ Advanced Weight Redist. System Hardened Light Armor Plating Hardened Light Armor Plating Hardened Light Armor Plating Component Analysis Suite > --- WEAPON (2) ------- Backup Laser III Backup Laser III > --- INVENTORY (5) ---- Neutrino Core Advanced ECM Suite Authchip [R/Combat] Particle Gun Remote Datajack Peak State ------------ > --- POWER ------------ Micro Nuclear Core Micro Nuclear Core > --- PROPULSION ------- Carbon-fiber Leg Titanium Leg Titanium Leg Armored Leg > --- UTILITY ---------- Small Storage Unit Advanced Visual Processing Unit Melee Analysis Suite Advanced Actuator Array ECM Suite Light Armor Plating Reflective Plating > --- WEAPON ----------- Mace Heavy Flail > --- INVENTORY -------- Advanced Weight Redist. System Armor Integrity Analyzer Advanced ECM Suite Cloak of Protection Component Analysis Suite Particle Gun Remote Datajack Remote Datajack [Rating: 49] Favorites ----------- Power Micro Nuclear Core Engine Heavy Ion Engine Power Core Micro Nuclear Core Propulsion Aluminum Leg Leg Aluminum Leg Hover Unit Gravmag System Utility Small Storage Unit Device ECM Suite Storage Small Storage Unit Processor Advanced Visual Processing Unit Protection Reflective Plating Weapon Medium Laser Energy Gun Medium Laser Energy Cannon HERF Cannon Ballistic Gun Light Assault Rifle Launcher Rocket Launcher Impact Weapon Heavy Flail Build | -11 -10 -10 -10 -9 -8 -7 -6 -6 -6 ------- Run | Yrd Mat Min Exi Min Mat Fac Fac Was Fac Slots Evolved 8 | . . . . . 4 2 2 . . Power 1 | . . . . . 1 . . . . Propulsion 2 | . . . . . 1 1 . . . Utility 5 | . . . . . 2 1 2 . . Weapon . | . . . . . . . . . . Parts Attached 84 | 7 2 2 4 4 37 6 7 15 . Power 12 | 1 1 . . 3 4 . . 3 . Engine 7 | 1 1 . . 3 1 . . 1 . Core 5 | . . . . . 3 . . 2 . Reactor . | . . . . . . . . . . Propulsion 22 | 2 . 1 1 . 13 1 2 2 . Treads . | . . . . . . . . . . Leg 18 | 2 . 1 1 . 9 1 2 2 . Wheel . | . . . . . . . . . . Hover 4 | . . . . . 4 . . . . Flight . | . . . . . . . . . . Utility 26 | 2 . . 2 . 8 3 3 8 . Device 14 | 1 . . 2 . 4 1 1 5 . Storage 2 | 1 . . . . 1 . . . . Processor 2 | . . . . . . 1 1 . . Hackware . | . . . . . . . . . . Protection 8 | . . . . . 3 1 1 3 . Artifact . | . . . . . . . . . . Weapon 24 | 2 1 1 1 1 12 2 2 2 . Energy Gun 6 | 1 1 . 1 . 3 . . . . Energy Cannon 1 | . . . . . . . . 1 . Ballistic Gun 1 | 1 . . . . . . . . . Ballistic Cannon . | . . . . . . . . . . Launcher 9 | . . 1 . 1 5 2 . . . Special Weapon . | . . . . . . . . . . Impact Weapon 7 | . . . . . 4 . 2 1 . Slashing Weapon . | . . . . . . . . . . Piercing Weapon . | . . . . . . . . . . Special Melee Weapon . | . . . . . . . . . . Unidentified Prototypes 3 | . 1 . 1 . 1 . . . . Parts Lost 18 | . . . . . 4 . 1 13 . Power 5 | . . . . . 1 . . 4 . Propulsion 5 | . . . . . 2 . . 3 . Utility 5 | . . . . . . . . 5 . Weapon 3 | . . . . . 1 . 1 1 . Highest Loss Streak 11 | . . . . . 1 . 1 11 . To Critical Strikes . | . . . . . . . . . . Average Slot Usage (%) 94 | . 99 100 100 100 94 100 98 46 73 Engine 8 | . 14 14 14 14 7 . . 6 13 Core 6 | . . . . . 8 15 13 1 . Leg 22 | . 28 28 28 28 18 30 26 3 . Hover 2 | . . . . . 7 . . 5 13 Device 15 | . 14 14 14 14 19 10 13 7 13 Storage 9 | . 14 14 14 14 9 7 6 . . Processor 1 | . . . . . . 4 8 2 . Protection 6 | . . . . . 7 15 15 9 20 Energy Gun 10 | . 16 24 28 20 5 . . 6 13 Launcher 4 | . . 3 . 7 2 9 7 . . Impact Weapon 3 | . . . . . 7 4 5 1 . Naked Turns 61 | . . . . . . . . 61 . Heaviest Build 43 | 12 18 20 25 22 40 40 43 38 24 Greatest Support 68 | 20 20 20 20 20 51 68 68 65 25 Greatest Overweight (x) 6 | 1 . . 1 1 3 . . 6 . Average Overweight (x) . | . . . . . . . . . . Largest Inventory Capacity 8 | 8 8 8 8 8 8 8 8 8 5 Average Capacity 7 | 7 8 8 8 8 8 8 8 5 5 Most Carried 8 | 5 8 8 8 8 8 8 8 8 5 Average Carried 7 | 3 7 7 7 7 7 6 6 4 5 Final Capacity 8 | 8 8 8 8 8 8 8 8 5 5 Final Carried 8 | 4 8 8 8 8 8 8 7 5 5 Class Distribution -------------------- 73% | Mutant 12% | Scavenger-Mutant 8% | Gladiator 5% | Infiltrator-Mutant Dominant Class ---------------- Mutant | -10/Materials Mutant | -10/Mines Mutant | -10/Exiles Mutant | -9/Mines Mutant | -8/Materials Mutant | -7/Factory Mutant | -6/Factory Mutant | -6/Waste Mutant | -6/Factory Resources | -11 -10 -10 -10 -9 -8 -7 -6 -6 -6 ----------- Run | Yrd Mat Min Exi Min Mat Fac Fac Was Fac Matter Collected 1654 | 280 15 63 . 182 598 190 277 49 . Remotely . | . . . . . . . . . . Salvage Created 2968 | 201 11 210 . 197 1664 295 390 . . Parts 137 | 13 3 6 . 9 84 13 9 . . Haulers Intercepted 5 | . . . . . 5 . . . . Recyclers Shooed 10 | 1 . 2 . 2 5 . . . . Parts Field Recycled . | . . . . . . . . . . Retrieved Matter . | . . . . . . . . . . Parts Self-Destructed . | . . . . . . . . . . Prevented . | . . . . . . . . . . Kills | -11 -10 -10 -10 -9 -8 -7 -6 -6 -6 ------- Run | Yrd Mat Min Exi Min Mat Fac Fac Was Fac Combat Hostiles Destroyed 49 | . . 4 . 3 30 7 5 . . Melee 4 | . . . . . 3 . 1 . . Guns 8 | . . 3 . 1 4 . . . . AOE 25 | . . . . 2 16 7 . . . Classes Destroyed 14 | 3 1 2 . 2 5 1 . . . Worker 14 | 2 . . . 1 11 . . . . Builder 9 | . . . . 1 7 1 . . . Tunneler 6 | 3 . 1 . 1 1 . . . . Hauler 5 | . . . . . 5 . . . . Recycler 10 | 1 . 1 . 2 4 1 1 . . Operator 2 | . . . . . 1 1 . . . Watcher 4 | . 1 . . . 2 1 . . . Swarmer 9 | . . 2 . . 7 . . . . Grunt 27 | . . 2 . 1 15 6 3 . . Duelist 2 | . . . . . 2 . . . . Sentry 6 | . . . . . 5 . 1 . . Hunter 1 | . . . . . 1 . . . . Programmer 2 | . . . . . . 1 1 . . Assembled 2 | . . . . 2 . . . . . Best Kill Streak 9 | 2 1 4 . 2 9 7 5 . . Combat Bots Only 5 | . . 4 . 1 4 5 4 . . Max Kills in Single Turn 4 | 1 1 1 . 1 4 2 1 . . Gunslinging . | . . . . . . . . . . Exploded 2 | . . . . 1 2 2 . . . Melee 1 | . . . . . 1 . 1 . . Uniques/NPCs Destroyed . | . . . . . . . . . . Combat | -11 -10 -10 -10 -9 -8 -7 -6 -6 -6 -------- Run | Yrd Mat Min Exi Min Mat Fac Fac Was Fac Hostile Shots Fired 238 | . . 15 . 13 127 16 49 18 . Missed 78 | . . 6 . 4 37 4 23 4 . Damage Taken 2314 | . . 98 . 153 1055 252 261 495 . Core 449 | . . 19 . 18 49 9 22 332 . Absorbed by Shields . | . . . . . . . . . . Ignored by Resistances 756 | . . 29 . 45 333 110 107 132 . Core Remaining (%) 93 | 100 . . . 85 91 98 . . . Volleys Fired 149 | 10 5 21 . 37 60 11 1 4 . Largest 2 | 2 2 2 . 2 2 2 2 2 . Hottest 100 | 70 70 100 . 100 100 69 69 88 . Shots Fired 217 | 20 10 37 . 51 73 17 2 7 . Gun 148 | 20 10 34 . 37 41 . . 6 . Cannon 1 | . . . . . . . . 1 . Launcher 68 | . . 3 . 14 32 17 2 . . Special . | . . . . . . . . . . Kinetic 15 | 10 5 . . . . . . . . Thermal 123 | 10 5 34 . 37 31 . . 6 . Explosive 68 | . . 3 . 14 32 17 2 . . Electromagnetic 11 | . . . . . 10 . . 1 . Robot Hit Streak 15 | 6 3 12 . 8 15 8 7 11 . Robot Miss Streak 3 | 1 1 3 . 1 2 1 . 1 . Penetration Max . | . . . . . . . . . . Secondary Targets 1 | . . 1 . . . . . . . Max Gunslinging Chain 1 | . . 1 . . . . . . . Shots Hit Robots 188 | 12 7 24 . 16 88 14 14 13 . Core Hits 130 | 8 2 10 . 13 76 15 4 2 . Critical Kills . | . . . . . . . . . . Critical Parts Destroyed 11 | . . . . . 7 1 3 . . Critical Strikes 20 | 2 . 3 . 2 9 1 3 . . Burn 8 | 2 . 3 . 2 1 . . . . Smash 12 | . . . . . 8 1 3 . . Melee Attacks 67 | . . . . . 46 1 13 7 . Impact 67 | . . . . . 46 1 13 7 . Slashing . | . . . . . . . . . . Piercing . | . . . . . . . . . . Sneak Attacks 10 | . . . . . 8 1 1 . . Combat Hostiles 1 | . . . . . 1 . . . . Follow-up Attacks 5 | . . . . . 2 . 2 1 . Damage Inflicted 8477 | 110 66 376 . 507 4977 1241 732 468 . Guns 1278 | 110 66 301 . 162 561 . . 78 . Cannons 3 | . . . . . . . . 3 . Explosions 4045 | . . 75 . 339 2424 1142 65 . . Melee 3139 | . . . . . 1992 99 667 381 . Ramming 12 | . . . . 6 . . . 6 . Kinetic 52 | 23 29 . . . . . . . . Thermal 1305 | 87 37 301 . 162 424 216 . 78 . Explosive 3705 | . . 75 . 339 2300 926 65 . . Electromagnetic 264 | . . . . . 261 . . 3 . Impact 3139 | . . . . . 1992 99 667 381 . Slashing . | . . . . . . . . . . Piercing . | . . . . . . . . . . Highest Corruption 1 | . . . . . . 1 . . . Average Corruption 1 | . . . . . . 1 . . . Corruption Purged . | . . . . . . . . . . Corruption Blocked . | . . . . . . . . . . Effects 1 | . . . . . . 1 . . . Matter Fused 1 | . . . . . . 1 . . . Overload Shots . | . . . . . . . . . . Overflow Damage 1350 | . . 3 . . 1087 122 138 . . Projectiles . | . . . . . . . . . . Explosions 160 | . . 3 . . 132 23 2 . . Melee 1190 | . . . . . 955 99 136 . . Knockbacks 11 | . . . . . 7 . 4 . . Impact 11 | . . . . . 7 . 4 . . Kinetic . | . . . . . . . . . . Secondary . | . . . . . . . . . . Self-Inflicted Damage 289 | . . 21 . 55 44 129 37 3 . Shots 10 | . . 1 . 3 1 3 2 . . Rammed 1 | . . . . . . . . 1 . Targets Rammed 3 | . . . . 2 . . . 1 . Kicked 2 | . . . . 2 . . . . . Crushed . | . . . . . . . . . . Highest Temperature 363 | 60 77 363 . 271 273 136 18 126 . Average Temperature 77 | 24 35 148 . 105 55 50 6 59 . Received Heat Transfer 834 | . . 51 . . 558 99 117 9 . Effects 3 | . . 2 . 1 . . . . . Interference 3 | . . 2 . 1 . . . . . Siege Activations . | . . . . . . . . . . Robots Corrupted 1 | . . . . . 1 . . . . Combat Hostiles 1 | . . . . . 1 . . . . Parts Fried 20 | . . . . . 15 . 5 . . Impact Corruptions 32 | . . . . . 26 1 5 . . Robots Melted 1 | . . 1 . . . . . . . Combat Hostiles 1 | . . 1 . . . . . . . Parts Melted 8 | 1 . 4 . 1 2 . . . . Heat Transferred 3815 | 407 111 1110 . 629 1186 150 . 222 . Parts Sabotaged . | . . . . . . . . . . Parts Stolen . | . . . . . . . . . . Parts Stripped . | . . . . . . . . . . Power Chain Reactions 2 | . . . . . 2 . . . . Alert | -11 -10 -10 -10 -9 -8 -7 -6 -6 -6 ------- Run | Yrd Mat Min Exi Min Mat Fac Fac Was Fac Peak Influence 798 | 30 82 164 . 96 798 563 211 28 . Initial 310 | . 16 26 . . 31 310 203 27 . Average 193 | 11 46 102 . 30 323 426 116 5 . Maximum Alert Level 3 | . . . . . 3 2 1 . . Low Security (%) 58 | 100 100 100 . 100 33 . 55 100 100 Level 1 22 | . . . . . 32 25 44 . . Level 2 16 | . . . . . 26 74 . . . Level 3 2 | . . . . . 7 . . . . Level 4 . | . . . . . . . . . . Level 5 . | . . . . . . . . . . High Security . | . . . . . . . . . . Max Security . | . . . . . . . . . . Squads Dispatched 12 | . . . . . 7 4 1 . . Investigation 3 | . . . . . 1 2 . . . Extermination 2 | . . . . . . 1 1 . . Reinforcement 4 | . . . . . 3 1 . . . Assault . | . . . . . . . . . . Garrison 3 | . . . . . 3 . . . . Intercept . | . . . . . . . . . . Searches Triggered . | . . . . . . . . . . Construction Impeded 1 | . . . . . 1 . . . . Haulers Reinforced . | . . . . . . . . . . Active Scanning Responses . | . . . . . . . . . . Cargo Convoy Interrupts . | . . . . . . . . . . Stealth | -11 -10 -10 -10 -9 -8 -7 -6 -6 -6 --------- Run | Yrd Mat Min Exi Min Mat Fac Fac Was Fac Distress Signals 4 | . . . . . 4 . . . . Communications Jammed . | . . . . . . . . . . Distress Signals . | . . . . . . . . . . Times Spotted 81 | . 3 4 . 4 48 9 6 7 . Peak Tracking Total 5 | . 2 4 . 1 4 3 4 5 . Tactical Retreats 10 | . . . . . 6 . 1 3 . Traps | -11 -10 -10 -10 -9 -8 -7 -6 -6 -6 ------- Run | Yrd Mat Min Exi Min Mat Fac Fac Was Fac Traps Triggered 1 | . . . . . . . 1 . . Indirectly . | . . . . . . . . . . Trap Hack Attempts . | . . . . . . . . . . Triggered . | . . . . . . . . . . Disarmed 1 | . 1 . . . . . . . . Reprogrammed . | . . . . . . . . . . Reused . | . . . . . . . . . . Traps Extracted . | . . . . . . . . . . Installed . | . . . . . . . . . . Triggered . | . . . . . . . . . . Machines | -11 -10 -10 -10 -9 -8 -7 -6 -6 -6 ---------- Run | Yrd Mat Min Exi Min Mat Fac Fac Was Fac Machines Disabled 12 | . . . . . 6 5 1 . . Max in Single Turn 3 | . . . . . 1 3 1 . . Garrison Access 2 | . . . . . . . 1 . 1 Machines Repaired . | . . . . . . . . . . Machines Dismantled . | . . . . . . . . . . Machines Sabotaged . | . . . . . . . . . . Overloaded Fab Kills . | . . . . . . . . . . Hacking | -11 -10 -10 -10 -9 -8 -7 -6 -6 -6 --------- Run | Yrd Mat Min Exi Min Mat Fac Fac Was Fac Machines Accessed 21 | . 5 1 1 1 3 4 5 . 1 Terminals 11 | . 5 1 . . 2 2 1 . . Fabricators 2 | . . . . . . 1 1 . . Repair Stations . | . . . . . . . . . . Recycling Units 3 | . . . . . . 1 2 . . Scanalyzers 1 | . . . . . 1 . . . . Garrison Access 2 | . . . . . . . 1 . 1 Total Hacks 45 | . 9 1 6 1 7 9 10 . 2 Successful 30 | . 5 1 6 1 5 2 9 . 1 Failed 15 | . 4 . . . 2 7 1 . 1 Catastrophic 2 | . 1 . . . . 1 . . . Database Lockouts . | . . . . . . . . . . Manual 1 | . . . 1 . . . . . . Terminals 18 | . 9 1 . . 4 3 1 . . Fabricators 3 | . . . . . . 2 1 . . Repair Stations . | . . . . . . . . . . Recycling Units 11 | . . . . . . 4 7 . . Scanalyzers 3 | . . . . . 3 . . . . Garrison Access 3 | . . . . . . . 1 . 2 Terminal Hacks 16 | . 5 1 6 1 2 1 . . . Record 7 | . 1 . 6 . . . . . . Prototype ID Bank 2 | . 1 . . . 1 . . . . Open Door 1 | . . . . 1 . . . . . Level Access Points 1 | . 1 . . . . . . . . Branch Access Points 2 | . 1 . . . . 1 . . . Terminal Index 1 | . . . . . 1 . . . . Disarm Traps 1 | . 1 . . . . . . . . Zone Layout 1 | . . 1 . . . . . . . Fabricator Hacks 2 | . . . . . . 1 1 . . Network Status 1 | . . . . . . . 1 . . Load Schematic 1 | . . . . . . 1 . . . Repair Station Hacks . | . . . . . . . . . . Recycling Unit Hacks 7 | . . . . . . . 7 . . Recycle Component 3 | . . . . . . . 3 . . Process 2 | . . . . . . . 2 . . Retrieve Matter 2 | . . . . . . . 2 . . Scanalyzer 3 | . . . . . 3 . . . . Insert Component 2 | . . . . . 2 . . . . Analyze 1 | . . . . . 1 . . . . Garrison Access Hacks 2 | . . . . . . . 1 . 1 Seal Access 2 | . . . . . . . 1 . 1 Unauthorized Hacks . | . . . . . . . . . . Terminals . | . . . . . . . . . . Fabricators . | . . . . . . . . . . Repair Stations . | . . . . . . . . . . Recycling Units . | . . . . . . . . . . Scanalyzers . | . . . . . . . . . . Garrison Access . | . . . . . . . . . . Data Cores Recovered 1 | . . . . . . 1 . . . Used . | . . . . . . . . . . Hacking Detections 12 | . 2 . . . 3 4 2 . 1 Full Trace Events 3 | . . . . . 1 2 . . . Feedback Events 1 | . . . . . . 1 . . . Corruption 1 | . . . . . . 1 . . . Feedback Blocked . | . . . . . . . . . . Robot Schematics Acquired . | . . . . . . . . . . Robots Built . | . . . . . . . . . . Authchips . | . . . . . . . . . . Time . | . . . . . . . . . . Total Robot Build Rating . | . . . . . . . . . . Part Schematics Acquired 1 | . . . . . 1 . . . . Parts Built . | . . . . . . . . . . Authchips . | . . . . . . . . . . Time . | . . . . . . . . . . Total Part Build Rating . | . . . . . . . . . . Parts Repaired . | . . . . . . . . . . Time . | . . . . . . . . . . Parts Recycled 3 | . . . . . . . 3 . . Recycled Matter 53 | . . . . . . . 53 . . Retrieved Matter 53 | . . . . . . . 53 . . Retrieved Components . | . . . . . . . . . . Parts Scanalyzed 1 | . . . . . 1 . . . . Part Schematics Acquired 1 | . . . . . 1 . . . . Parts Damaged . | . . . . . . . . . . Bothacking | -11 -10 -10 -10 -9 -8 -7 -6 -6 -6 ------------ Run | Yrd Mat Min Exi Min Mat Fac Fac Was Fac Used RIF Installer . | . . . . . . . . . . Robots Hacked . | . . . . . . . . . . Non-combat . | . . . . . . . . . . Combat . | . . . . . . . . . . Robot Hacks Applied . | . . . . . . . . . . Relay Couplers Released . | . . . . . . . . . . Fabnet Peak Effective % . | . . . . . . . . . . Robots Rewired . | . . . . . . . . . . Allies Hacked . | . . . . . . . . . . Hacks Repelled . | . . . . . . . . . . Allies | -11 -10 -10 -10 -9 -8 -7 -6 -6 -6 -------- Run | Yrd Mat Min Exi Min Mat Fac Fac Was Fac Total Allies 20 | . . . . . . . . 20 . Largest Group 19 | . . . . . . . . 19 1 Highest-Rated Group 702 | . . . . . . . . 702 17 Highest-Rated Ally 50 | . . . . . . . . 50 17 Total Orders . | . . . . . . . . . . Ally Attacks 143 | . . . . . . . . 143 . Total Damage 6484 | . . . . . . . . 6484 . Kills 8 | . . . . . . . . 8 . Allies Corrupted . | . . . . . . . . . . Allies Melted . | . . . . . . . . . . Intel | -11 -10 -10 -10 -9 -8 -7 -6 -6 -6 ------- Run | Yrd Mat Min Exi Min Mat Fac Fac Was Fac Robot Analysis Total . | . . . . . . . . . . Derelict Logs Recovered 1 | . . 1 . . . . . . . Drone Launches . | . . . . . . . . . . Drone Recoveries . | . . . . . . . . . . Exploration | -11 -10 -10 -10 -9 -8 -7 -6 -6 -6 ------------- Run | Yrd Mat Min Exi Min Mat Fac Fac Was Fac Turns Passed 5728 | 150 355 316 603 671 1914 457 889 344 29 Spaces Moved 3371 | 85 276 210 402 343 902 290 489 336 38 Core 151 | 12 . . . . . . . 139 . Treads . | . . . . . . . . . . Legs 2681 | 73 276 210 402 343 571 290 489 27 . Wheels . | . . . . . . . . . . Hover 539 | . . . . . 331 . . 170 38 Flight . | . . . . . . . . . . Fastest Speed 50 | 50 120 120 120 120 52 130 125 50 76 Average Speed 129 | 113 120 120 147 148 139 130 127 82 76 Slowest Speed 350 | 120 120 120 190 190 270 130 130 350 76 Overloaded Moves . | . . . . . . . . . . Propulsion Burnouts . | . . . . . . . . . . Robots Hopped . | . . . . . . . . . . Cave-ins Triggered . | . . . . . . . . . . Exploration Rate (%) 36 | 5 40 42 64 44 55 6 10 94 1 Regions Visited 9 Branch Regions 3 Pre-discovered Areas . | . . . . . . . . . . Known Exits Taken 1 | . 1 . . . . . . . . Unknown Exits Taken 6 | 1 . 1 1 1 1 1 . . . Scrap Searched 1 | . . 1 . . . . . . . Spaces Dug 57 | . . 18 . . 39 . . . . Terrain Destroyed 429 | . . 31 . 86 212 93 7 . . Melee . | . . . . . . . . . . Projectile . | . . . . . . . . . . AOE 429 | . . 31 . 86 212 93 7 . . Terrain Rammed . | . . . . . . . . . . Walls Destroyed . | . . . . . . . . . . Machines Disabled . | . . . . . . . . . . Actions | -11 -10 -10 -10 -9 -8 -7 -6 -6 -6 --------- Run | Yrd Mat Min Exi Min Mat Fac Fac Was Fac Total 4430 | 122 291 237 412 450 1415 349 734 382 38 Wait 675 | 6 . 2 . 61 336 37 218 15 . Move 3363 | 84 275 209 401 342 901 289 489 335 38 Hop . | . . . . . . . . . . Pick Up 52 | 13 6 1 2 2 13 3 6 6 . Fast Attach 30 | . 1 . 3 . 17 . . 9 . Attach 27 | 7 . . . . 6 4 5 5 . Detach 3 | . . . . . 1 1 1 . . Swap 27 | . 1 2 1 4 14 2 2 1 . Drop 39 | 2 3 2 5 2 23 1 1 . . Fire 149 | 10 5 21 . 37 60 11 1 4 . Melee 62 | . . . . . 44 1 11 6 . Ram 1 | . . . . . . . . 1 . Kick 2 | . . . . 2 . . . . . Crush . | . . . . . . . . . . Escape Stasis . | . . . . . . . . . . Rewire . | . . . . . . . . . . Trap . | . . . . . . . . . . Miscellaneous . | . . . . . . . . . . Route ------- -11/Scrapyard -10/Materials (discovered 5 exits: *Mat x3 / *Min x2) -10/Mines (discovered 3 exits: *Mat x2 / *Exi) -10/Exiles (discovered 2 exits: *Min x2) -9/Mines -8/Materials -7/Factory (discovered 3 exits: *Fac / Low x2) -6/Factory -6/Waste -6/Factory History --------- Turn | Location | Event 32 | -11/Scrapyard | Discovered new exit (range 16) 151 | -11/Scrapyard | Entered Materials 208 | -10/Materials | Identified exit to Materials 272 | -10/Materials | Identified exit to Mines 312 | -10/Materials | Build established: Mutant 506 | -10/Materials | Entered Mines 511 | -10/Mines | Met a Derelict bent on vengeance 587 | -10/Mines | Discovered exit to Materials (range 5) 600 | -10/Mines | Received a Rocket Launcher from a helpful Derelict 657 | -10/Mines | Discovered exit to Materials (range 10) 674 | -10/Mines | Learned Materials trap positions 815 | -10/Mines | Deemed a non-threat by the Exiles lab entrance 815 | -10/Mines | Discovered new exit (range 5) 822 | -10/Mines | Entered Exiles 843 | -10/Exiles | Discovered new exit (range 15) 856 | -10/Exiles | Met 8R-AWN 882 | -10/Exiles | Met EX-HEX 928 | -10/Exiles | Met EX-DEC 976 | -10/Exiles | Met EX-BIN 998 | -10/Exiles | Aligned with FarCom system 999 | -10/Exiles | Given EX-Vault access code 1058 | -10/Exiles | Opened EX-Vault 1113 | -10/Exiles | Found Prototype Device 1113 | -10/Exiles | Identified Cloak of Protection 1177 | -10/Exiles | Warned to stay clear of 0b10 Research branches 1334 | -10/Exiles | Discovered new exit (range 14) 1425 | -10/Exiles | Left Exiles lab with Cloak of Protection 1425 | -10/Exiles | Entered Mines 1455 | -9/Mines | Discovered new exit (range 12) 1485 | -9/Mines | Found the Drone Emporium 1685 | -9/Mines | Excavation squad dispatched 1685 | -9/Mines | A large section of the Mines collapsed 2096 | -9/Mines | Entered Materials 2096 | -8/Materials | Evolved 4 slots: Power x1, Propulsion x1, Utility x2 2097 | -8/Materials | Loaded intel: 19 trap records 3151 | -8/Materials | Build established: Scavenger-Mutant 3487 | -8/Materials | Garrison activated, responded to threat 3904 | -8/Materials | Discovered new exit (range 8) 3972 | -8/Materials | Build established: Mutant 4010 | -8/Materials | Entered Factory 4010 | -7/Factory | Evolved 2 slots: Propulsion x1, Utility x1 4048 | -7/Factory | Discovered new exit (range 8) 4098 | -7/Factory | Identified exit to Lower Caves 4467 | -7/Factory | Entered another Factory area 4467 | -6/Factory | Evolved 2 slots: Utility x2 5287 | -6/Factory | Build established: Gladiator 5356 | -6/Factory | Sucked down chute 5356 | -6/Factory | Entered Waste 5357 | -6/Waste | Met a frightened Derelict 5371 | -6/Waste | Spotted C-40 Crusher 5374 | -6/Waste | Spotted C-40 Crusher 5395 | -6/Waste | Crushed by Compactor (1 part destroyed, 1 dropped) 5398 | -6/Waste | Crushed by Compactor (1 part destroyed, 2 dropped) 5401 | -6/Waste | Crushed by Compactor (1 part destroyed, 2 dropped) 5402 | -6/Waste | Spotted C-40 Crusher 5404 | -6/Waste | Crushed by Compactor (1 part destroyed, 1 dropped) 5407 | -6/Waste | Crushed by Compactor (1 part destroyed, 1 dropped) 5409 | -6/Waste | Crushed by Compactor (1 part destroyed, 1 dropped) 5412 | -6/Waste | Crushed by Compactor (1 part destroyed, 1 dropped) 5414 | -6/Waste | Crushed by Compactor (1 part destroyed) 5419 | -6/Waste | Crushed by Compactor (1 part destroyed, 1 dropped) 5422 | -6/Waste | Crushed by Compactor (1 part destroyed) 5422 | -6/Waste | Spotted C-40 Crusher 5439 | -6/Waste | Crushed by Compactor (1 part destroyed) 5470 | -6/Waste | Lost 11 parts (3p3n4u1w) 5490 | -6/Waste | Crushed by Compactor (1 part destroyed, 1 dropped) 5491 | -6/Waste | Crushed by Compactor (1 part destroyed) 5520 | -6/Waste | Warlord forces began an assault 5546 | -6/Waste | Allies destroyed C-40 Crusher 5581 | -6/Waste | Lost 5 allies 5600 | -6/Waste | Spotted C-40 Crusher 5619 | -6/Waste | Allies destroyed C-40 Crusher 5661 | -6/Waste | Discovered new exit (range 13) 5675 | -6/Waste | Build established: Mutant 5700 | -6/Waste | Entered Factory 5700 | -6/Factory | Accompanied by 1 ally 5729 | -6/Factory | Self-destructed Last Messages --------------- 05618_ FW-BK8(m) Wheel crushed. 05618_ FW-BK8(m) suffers critical hit (Destroy). 05618_ FW-BK8(m) destroyed. 05619_ The unstable cave ceiling collapses. 05619_ C-40 Crusher destroyed. 05619_ 4W-ZFQ(m) Wheel crushed. 05619_ 4W-ZFQ(m) suffers critical hit (Destroy). 05621_ Wheel crushed. 05625_ Acquired Neutrino Core. 05628_ Flexi-carbon Leg crushed. 05632_ The unstable cave ceiling collapses. 05661_ EXIT=FOUND 05672_ Acquired Corrupted Authchip [R/Combat]. LOCATION=UNKNOWN GOAL=ESCAPE 05700_ Receiving FarCom transmissions... 05709_ Connecting with Garrison Access... 05709_ Current location identified: Factory >>Seal Access door sealed. Map ----- +----------------------------------------------------+ | ?????????????????????????????????????????????????? | | ?????????????????????????????????????????????????? | | ?????????????????????????????????????????????????? | | ?????????????????????????????????????????????????? | | ?????????????????????????????????????????????????? | | ?????????????????????????????????????????????????? | | ?????????????????????????????????????????????????? | | ?????????????????????????????????????????????????? | | ?????????????????????????????????????????????????? | | ?????????????????????????????????????????????????? | | ?????????????????????????????????????????????????? | | ?????????????????????????????????????????????????? | | ?????????????????????????????????????????????????? | | ??????????????????????????????????????s??????????? | | ?????????????????????????????????????????????????? | | ?????????????????????????????????????????????????? | | ?????????????????????????????????????????????????? | | ?????????????????????????????????????????????????? | | ?????????????????###?????????????????????????????? | | ?????????????????+ #?????????????????????????????? | | ?????????????????# #?????????????????????????????? | | #########????????# ########??????????????????????? | | ########## #??????????????????????? | | """ """ + m #### ##### #?????????? | | """ G" ########## T ??????????? | | """ """ #????????###### @ ##????????????????? | | "" #?????????????# #?????????????????? | | "" #?????????????# #?????????????????? | | #?????????????# #?????????????????? | | #?????????????+ ????????????????? | | #########?????????????# ??????????????? | | ??????????????????????# """ ==! ????????????? | | ??????????????????????#k ""R" = =!! #???????????? | | ??????????????????????# "" " =!! #???????????? | | ??????????????????????#R #???????????? | | ??????????????????????# """"?"""" ????????????? | | ??????????????????????# ????? m ????????????? | | ?????????????????????? ???????????????????????? | | ?????????????????????? ???????????????????????? | | ?????????????????????? ???????????????????????? | | ?????????????????????? ????????????????????????? | | ?????????????????????????????????????????????????? | | ?????????????????????????????????????????????????? | | ?????????????????????????????????????????????????? | | | | | | | | | | | | | +----------------------------------------------------+ Best States ------------- Heat Dissipation 45 Energy Generation 25 Energy Capacity 340 Matter Stores 300 Matter Capacity 300 Sight Range 20 Terrain Scan Range 16 Terrain Scan Density 10 ECM Strength 3 Cloak Strength 5 Additional Mass Support 9 Armor Coverage 450 Resistance: KI 20 Resistance: TH 30 Resistance: EX 20 Resistance: EM 20 Resistance: I 20 Resistance: S 20 Resistance: P 20 Evasion (%) 55 Melee Accuracy 5 Offensive Hacking 10 Authchip Count 1 Item Schematics ----------------- Rocket Launcher | -8/Materials | Scanalyzed Robot Schematics ------------------ None Fabricated ------------ Nothing Alien Tech Used ----------------- None Achievements -------------- Hey, That's Mine! Power Corrupts Remodeling Challenges ------------ None Game ------ Seed MachineFusionHumpback Manual? 0 Play Time 01:25:56 Cumulative 12.5 hours Start 2024.02.26 @ 22:11:02 End 2024.03.02 @ 23:27:57 Sessions 5 Manual Loads 0 Difficulty Adventurer Special Mode None Game No. 10 Rogue 4 Adventurer 6 Explorer 0 Win Type - Total 0 Types 0/0/0/0/0/0/0/0/0 Lore% 14 Gallery% 11 Achievement% 11 Wizard Run 0 Options --------- Layout 0 ASCII 0 Keyboard 0 Movement Mouse Keybinds 0 Fullscreen 2 Font 24/Terminus Map View 76x50 Zoom Use 0% Tactical HUD 1 Map Filters NONE Filters NONE Steam 1 RUN: bda0b292-c360-41fe-a7ae-f90316fbd5b8